fUSD/lending_fUSD_20260505
["ID","MTS","AMOUNT","RATE_DAILY","PERIOD"]
[421611051,1777955443000,-21526.82891913,0.00042268,2]
[421611053,1777955443000,-715.68273302,0.00042268,2]
[421611052,1777955443000,-302.97385118,0.00042268,2]
[421611054,1777955443000,-15948.15585792,0.00042268,2]
[421611018,1777955443000,-296.137366,0.00042268,120]
[421611055,1777955443000,-97825.83745166,0.00042268,2]
[421611034,1777955443000,-1200.0,0.00042268,120]
[421611035,1777955443000,-2552.154281,0.00042268,120]
[421611020,1777955443000,-155.813187,0.00042268,120]
[421611010,1777955443000,-182.115522,0.00042268,120]
[421611013,1777955443000,-151.0,0.00042268,7]
[421611011,1777955443000,-151.0,0.00042268,120]
[421611009,1777955443000,-182.115522,0.00042268,120]
[421611012,1777955443000,-296.137366,0.00042268,120]
[421611014,1777955443000,-296.137366,0.00042268,120]
[421611021,1777955443000,-700.084529,0.00042268,120]
[421611025,1777955443000,-151.0,0.00042268,120]
[421611032,1777955443000,-1200.0,0.00042268,120]
[421611031,1777955443000,-1200.0,0.00042268,120]
[421611033,1777955443000,-1200.0,0.00042268,120]
[421611022,1777955443000,-700.084529,0.00042268,120]
[421611023,1777955443000,-700.084529,0.00042268,120]
[421611024,1777955443000,-700.084529,0.00042268,120]
[421611030,1777955443000,-1866.53309,0.00042268,120]
[421611026,1777955443000,-229.834977,0.00042268,120]
[421611027,1777955443000,-1866.53309,0.00042268,120]
[421611028,1777955443000,-1866.53309,0.00042268,120]
[421611029,1777955443000,-1866.53309,0.00042268,120]
[421611019,1777955443000,-151.0,0.00042268,7]
[421611017,1777955443000,-151.0,0.00042268,7]
[421611061,1777955444000,-153.94,0.00024658,2]
[421611063,1777955444000,-153.95,0.00030136,7]
[421611064,1777955444000,-205.25,0.00031445,2]
[421611065,1777955444000,-6041.0,0.00037296,2]
[421611066,1777955444000,-6041.0,0.00040296,2]
[421611068,1777955444000,-103307.30044601,0.00042268,2]
[421611067,1777955444000,-425.0,0.00042268,60]
[421611073,1777955446000,-2350.74982996,0.00042268,2]
[421611071,1777955446000,-681.97176463,0.00041183,2]
[421611072,1777955446000,-956.0,0.00042268,60]
[421611080,1777956406000,-184.01592595,0.00014998,2]
[421611083,1777956442000,-1015.98407405,0.00014998,2]
[421611082,1777956442000,-4792.517481,0.00014923,2]
[421611084,1777956442000,-300.0,0.00014998,2]
[421611085,1777956442000,-150.0,0.00014998,2]
[421611087,1777956442000,-509.53430038,0.00014999,2]
[421611086,1777956442000,-250.0,0.00014999,2]
[421611090,1777956442000,-530.63446901,0.00014999,2]
[421611089,1777956442000,-305.65687157,0.00014999,2]
[421611091,1777956442000,-500.0,0.00014999,2]
[421611088,1777956442000,-505.3422016,0.00014999,2]
[421611092,1777956442000,-500.0,0.00014999,2]
[421611093,1777956442000,-500.0,0.00014999,2]
[421611103,1777956442000,-500.0,0.00014999,2]
[421611100,1777956442000,-500.0,0.00014999,2]
[421611101,1777956442000,-500.0,0.00014999,2]
[421611099,1777956442000,-500.0,0.00014999,2]
[421611098,1777956442000,-500.0,0.00014999,2]
[421611095,1777956442000,-500.0,0.00014999,2]
[421611096,1777956442000,-500.0,0.00014999,2]
[421611094,1777956442000,-239.21506588,0.00014999,2]
[421611097,1777956442000,-500.0,0.00014999,2]
[421611135,1777956443000,-151.0,0.00017499,2]
[421611140,1777956443000,-151.0,0.00017499,2]
[421611142,1777956443000,-151.0,0.00017499,2]
[421611141,1777956443000,-151.0,0.00017499,2]
[421611139,1777956443000,-151.0,0.00017499,2]
[421611137,1777956443000,-151.0,0.00017499,2]
[421611133,1777956443000,-151.0,0.00017499,2]
[421611136,1777956443000,-151.0,0.00017499,2]
[421611134,1777956443000,-151.0,0.00017499,2]
[421611132,1777956443000,-151.0,0.00017499,2]
[421611131,1777956443000,-151.0,0.00017499,2]
[421611130,1777956443000,-151.0,0.00017499,2]
[421611138,1777956443000,-151.0,0.00017499,2]
[421611143,1777956443000,-151.0,0.00017499,2]
[421611147,1777956443000,-168.42,0.00018836,2]
[421611145,1777956443000,-2351.0,0.00018148,2]
[421611159,1777956443000,-413.97085413,0.00019338,2]
[421611158,1777956443000,-500.0,0.00019338,2]
[421611157,1777956443000,-500.0,0.00019338,2]
[421611155,1777956443000,-229.98544754,0.00019338,2]
[421611156,1777956443000,-500.0,0.00019338,2]
[421611154,1777956443000,-500.0,0.00019338,2]
[421611144,1777956443000,-151.0,0.00017499,2]
[421611150,1777956443000,-500.0,0.00019338,2]
[421611152,1777956443000,-500.0,0.00019338,2]
[421611151,1777956443000,-500.0,0.00019338,2]
[421611148,1777956443000,-447.6138794,0.00019143,2]
[421611149,1777956443000,-500.0,0.00019338,2]
[421611146,1777956443000,-736.0,0.00018628,2]
[421611153,1777956443000,-500.0,0.00019338,2]
[421611163,1777956565000,-1000.0,0.00019338,2]
[421611161,1777956565000,-511.2870882,0.00016625,2]
[421611162,1777956565000,-513.0,0.00019337,2]
[421611165,1777956565000,-9999.99,0.00019339,2]
[421611164,1777956565000,-361.28,0.00019339,2]
[421611168,1777956565000,-432.79,0.00019339,2]
[421611167,1777956565000,-4999.99,0.00019339,2]
[421611169,1777956565000,-9999.99,0.00019339,2]
[421611170,1777956565000,-1860.1414518,0.00019339,2]
[421611166,1777956565000,-9999.99,0.00019339,2]
[421611171,1777956571000,-7692.9485482,0.00019339,2]
[421611172,1777956571000,-450.19,0.00019339,2]
[421611174,1777956571000,-1399.53086517,0.00019513,2]
[421611173,1777956571000,-30949.67,0.00019339,2]
[421611176,1777956571000,-3292.0,0.00019962,2]
[421611178,1777956571000,-150.0,0.00020249,2]
[421611175,1777956571000,-250.0,0.00019947,2]
[421611177,1777956571000,-150.0,0.00020249,2]
[421611181,1777956571000,-162.51838138,0.0002105,2]
[421611184,1777956571000,-1399.53086512,0.00022058,2]
[421611182,1777956571000,-150.0,0.00021869,2]
[421611183,1777956571000,-2052.0,0.00021959,2]
[421611180,1777956571000,-2340.69,0.00020951,2]
[421611185,1777956571000,-940.28331069,0.00022387,2]
[421611179,1777956571000,-3983.24997822,0.00020521,2]
[421611186,1777956571000,-1316.57299122,0.00022562,2]
[421611189,1777956572000,-160.0,0.00022904,2]
[421611188,1777956572000,-2964.62,0.0002257,2]
[421611187,1777956572000,-701.25700878,0.00022562,2]
[421611190,1777956572000,-716.30406405,0.00023,2]
[421611191,1777956572000,-163.5651651,0.00023,14]
[421611193,1777956572000,-500.0,0.00023395,2]
[421611194,1777956572000,-784.90747407,0.00023698,2]
[421611192,1777956572000,-2964.62,0.00023134,2]
[421611226,1777956632000,-161.2,0.00025753,7]
[421611225,1777956632000,-1994.32701123,0.00025149,2]
[421611228,1777956632000,-158.45,0.00025753,7]
[421611229,1777956632000,-99.80678998,0.00026463,7]
[421611230,1777956632000,-7100.19321002,0.00026463,7]
[421611231,1777956632000,-2821.71,0.00026463,2]
[421611233,1777956632000,-346.72234768,0.00027549,2]
[421611244,1777956632000,-158.45,0.00029782,7]
[421611245,1777956632000,-158.45,0.00029782,30]
[421611232,1777956632000,-569.0,0.00027137,2]
[421611234,1777956632000,-1000.0,0.00028063,2]
[421611235,1777956632000,-51623.92,0.00028216,2]
[421611239,1777956632000,-150.0,0.00029534,2]
[421611237,1777956632000,-500.0,0.00028993,7]
[421611241,1777956632000,-500.0,0.00029782,2]
[421611246,1777956632000,-158.45,0.00029782,2]
[421611247,1777956632000,-155.47,0.00029883,2]
[421611243,1777956632000,-158.45,0.00029782,2]
[421611227,1777956632000,-155.47,0.00025753,7]
[421611222,1777956632000,-155.47,0.00024658,2]
[421611224,1777956632000,-2964.62,0.00024827,2]
[421611249,1777956632000,-155.47,0.00029883,30]
[421611207,1777956632000,-1386.78395259,0.00019669,2]
[421611206,1777956632000,-323.7335851,0.00016625,2]
[421611208,1777956632000,-1438.09495884,0.00020217,2]
[421611212,1777956632000,-1663.03959526,0.00022409,2]
[421611216,1777956632000,-511.2870882,0.00023829,2]
[421611211,1777956632000,-1603.70259909,0.00021861,2]
[421611213,1777956632000,-1724.57206028,0.00022957,2]
[421611214,1777956632000,-1788.38122651,0.00023505,2]
[421611215,1777956632000,-2179.71252593,0.00023698,2]
[421611210,1777956632000,-1546.48273779,0.00021313,2]
[421611209,1777956632000,-1491.30447232,0.00020765,2]
[421611218,1777956632000,-1854.55133189,0.00024053,2]
[421611217,1777956632000,-323.7335851,0.00023829,2]
[421611220,1777956632000,-2964.62,0.00024263,2]
[421611221,1777956632000,-1923.16973117,0.00024601,2]
[421611219,1777956632000,-154.71,0.00024179,2]
[421611223,1777956632000,-158.45,0.00024658,2]
[421611259,1777956632000,-691.64153846,0.00030896,2]
[421611273,1777956632000,-150.0,0.00032562,2]
[421611252,1777956632000,-5000.0,0.00030034,2]
[421611275,1777956632000,-319.42,0.00033849,2]
[421611278,1777956632000,-10302.0224976,0.000345,120]
[421611279,1777956632000,-984.77,0.00034857,40]
[421611283,1777956632000,-236.427531,0.00036162,21]
[421611282,1777956632000,-569.0,0.00035947,11]
[421611284,1777956632000,-168.6,0.00036304,2]
[421611280,1777956632000,-185.191,0.00034857,40]
[421611286,1777956632000,-55524.44620505,0.000364,2]
[421611285,1777956632000,-16450.55379495,0.000364,2]
[421611287,1777956632000,-925.0,0.00036876,2]
[421611288,1777956632000,-638.515,0.00036876,2]
[421611289,1777956632000,-3535.0,0.00036876,2]
[421611290,1777956632000,-1221.0,0.00036876,2]
[421611291,1777956632000,-150.0,0.00036876,2]
[421611294,1777956632000,-419.064,0.00036876,2]
[421611293,1777956632000,-6041.0,0.00036876,2]
[421611248,1777956632000,-155.47,0.00029883,7]
[421611277,1777956632000,-1459.36,0.00034243,2]
[421611276,1777956632000,-150.0,0.0003419,2]
[421611281,1777956632000,-301.70754747,0.00035,30]
[421611274,1777956632000,-171.647669,0.0003381,21]
[421611255,1777956632000,-1459.36,0.00030438,2]
[421611292,1777956632000,-1278.647,0.00036876,2]
[421611251,1777956632000,-155.5,0.00029883,2]
[421611253,1777956632000,-500.0,0.00030056,2]
[421611258,1777956632000,-500.0,0.00030878,2]
[421611256,1777956632000,-500.0,0.00030604,2]
[421611254,1777956632000,-500.0,0.0003033,2]
[421611261,1777956632000,-150.0,0.00031011,2]
[421611264,1777956632000,-500.0,0.00031152,2]
[421611260,1777956632000,-180.53076051,0.00031,2]
[421611265,1777956632000,-446.82,0.00031243,10]
[421611272,1777956632000,-162.51838138,0.00032463,7]
[421611266,1777956632000,-161.79850598,0.00031254,30]
[421611268,1777956632000,-210.519334,0.0003224,10]
[421611271,1777956632000,-1943.80338916,0.00032463,7]
[421611267,1777956632000,-200.0,0.00031626,2]
[421611263,1777956632000,-323.7335851,0.00031033,2]
[421611262,1777956632000,-511.2870882,0.00031033,2]
[421611269,1777956632000,-5206.19661084,0.00032463,7]
[421611327,1777956633000,-150.0,0.00038725,7]
[421611314,1777956633000,-511.2870882,0.00038238,2]
[421611316,1777956633000,-2616.85509076,0.00038382,2]
[421611320,1777956633000,-973.0,0.00038536,30]
[421611321,1777956633000,-800.0,0.00038647,13]
[421611322,1777956633000,-800.0,0.00038647,13]
[421611323,1777956633000,-800.0,0.00038647,13]
[421611326,1777956633000,-800.0,0.00038647,13]
[421611335,1777956633000,-500.0,0.00039108,2]
[421611324,1777956633000,-810.0,0.00038647,13]
[421611328,1777956633000,-500.0,0.00038834,2]
[421611330,1777956633000,-500.0,0.00038834,2]
[421611329,1777956633000,-500.0,0.00038834,2]
[421611331,1777956633000,-607.68645529,0.00038834,2]
[421611332,1777956633000,-2616.85509076,0.00038959,2]
[421611333,1777956633000,-150.0,0.0003899,7]
[421611319,1777956633000,-525.0,0.00038536,30]
[421611325,1777956633000,-800.0,0.00038647,13]
[421611313,1777956633000,-150.0,0.00038195,7]
[421611296,1777956633000,-5529.0,0.000372,3]
[421611318,1777956633000,-7150.0,0.00038463,7]
[421611334,1777956633000,-150.0,0.00039043,7]
[421611298,1777956633000,-2616.85509076,0.00037806,2]
[421611297,1777956633000,-2616.85509076,0.00037229,2]
[421611300,1777956633000,-341.61065096,0.00037999,7]
[421611299,1777956633000,-5529.0,0.000379,5]
[421611305,1777956633000,-150.0,0.00038195,7]
[421611304,1777956633000,-150.0,0.00038195,30]
[421611306,1777956633000,-150.0,0.00038195,7]
[421611315,1777956633000,-323.7335851,0.00038238,2]
[421611308,1777956633000,-150.0,0.00038195,7]
[421611307,1777956633000,-150.0,0.00038195,7]
[421611302,1777956633000,-1210.7,0.00038034,30]
[421611303,1777956633000,-1459.36,0.00038048,2]
[421611309,1777956633000,-151.41707653,0.00038195,7]
[421611310,1777956633000,-150.0,0.00038195,7]
[421611311,1777956633000,-150.41189386,0.00038195,7]
[421611312,1777956633000,-150.0,0.00038195,7]
[421611317,1777956633000,-150.0,0.0003846,7]
[421611301,1777956633000,-421.60988316,0.00038,60]
[421611338,1777956633000,-189.9926087,0.00039108,2]
[421611295,1777956633000,-500.61824174,0.00037173,5]
[421611343,1777956633000,-379.10052604,0.00039108,2]
[421611361,1777956633000,-219.2,0.000396,31]
[421611363,1777956633000,-150.0,0.00039609,7]
[421611364,1777956633000,-173.81639783,0.00039676,2]
[421611366,1777956633000,-1002.25088546,0.00039709,5]
[421611362,1777956633000,-219.199999,0.000396,31]
[421611365,1777956633000,-3879.18885623,0.00039686,2]
[421611367,1777956633000,-1000.0,0.00039709,5]
[421611369,1777956633000,-267.53507715,0.00039766,2]
[421611359,1777956633000,-219.2,0.000396,31]
[421611370,1777956633000,-796.0684067,0.00039774,2]
[421611374,1777956633000,-3000.0,0.00039775,2]
[421611373,1777956633000,-512.53873962,0.00039775,7]
[421611378,1777956633000,-1254.41808677,0.00039776,2]
[421611372,1777956633000,-500.0,0.00039775,7]
[421611376,1777956633000,-8704.40218861,0.00039776,2]
[421611375,1777956633000,-200.0,0.00039775,30]
[421611377,1777956633000,-26041.02919608,0.00039776,2]
[421611342,1777956633000,-500.0,0.00039108,2]
[421611371,1777956633000,-184.07055468,0.00039775,7]
[421611368,1777956633000,-1004.07861141,0.00039709,5]
[421611379,1777956633000,-33013.41011126,0.00039776,2]
[421611358,1777956633000,-219.199999,0.000396,31]
[421611337,1777956633000,-500.0,0.00039108,2]
[421611339,1777956633000,-500.0,0.00039108,2]
[421611340,1777956633000,-500.0,0.00039108,2]
[421611336,1777956633000,-500.0,0.00039108,2]
[421611360,1777956633000,-219.199999,0.000396,31]
[421611344,1777956633000,-266.14613373,0.00039162,5]
[421611349,1777956633000,-500.0,0.00039162,5]
[421611348,1777956633000,-500.394342,0.00039162,5]
[421611345,1777956633000,-500.0,0.00039162,5]
[421611341,1777956633000,-500.0,0.00039108,2]
[421611346,1777956633000,-501.4160514,0.00039162,5]
[421611352,1777956633000,-150.0,0.00039255,7]
[421611347,1777956633000,-502.93754583,0.00039162,5]
[421611353,1777956633000,-150.0,0.00039521,7]
[421611355,1777956633000,-219.2,0.000396,31]
[421611350,1777956633000,-408.34820023,0.00039162,5]
[421611354,1777956633000,-2616.85509076,0.00039536,2]
[421611356,1777956633000,-219.199999,0.000396,31]
[421611357,1777956633000,-219.2,0.000396,31]
[421611351,1777956633000,-500.0,0.00039162,5]
[421611393,1777956638000,-350.42477603,0.00036399,15]
[421611397,1777956638000,-500.0,0.00036399,15]
[421611396,1777956638000,-500.0,0.00036399,15]
[421611390,1777956638000,-500.0,0.00036399,15]
[421611386,1777956638000,-500.0,0.00036399,15]
[421611389,1777956638000,-500.0,0.00036399,15]
[421611387,1777956638000,-464.69276174,0.00036399,15]
[421611388,1777956638000,-500.0,0.00036399,15]
[421611385,1777956638000,-500.0,0.00036399,15]
[421611392,1777956638000,-500.0,0.00036399,15]
[421611398,1777956638000,-500.0,0.00036399,15]
[421611394,1777956638000,-500.0,0.00036399,15]
[421611391,1777956638000,-500.0,0.00036399,15]
[421611395,1777956638000,-500.0,0.00036399,15]
[421611407,1777956638000,-285928.88382444,0.00039776,2]
[421611405,1777956638000,-500.0,0.00036399,15]
[421611406,1777956638000,-5000.0,0.00039676,2]
[421611402,1777956638000,-500.0,0.00036399,15]
[421611408,1777956638000,-865748.46617941,0.00039776,2]
[421611403,1777956638000,-500.0,0.00036399,15]
[421611400,1777956638000,-500.0,0.00036399,15]
[421611401,1777956638000,-500.0,0.00036399,15]
[421611399,1777956638000,-500.0,0.00036399,15]
[421611404,1777956638000,-500.0,0.00036399,15]
[421611456,1777956640000,-1267.0,0.00039876,2]
[421611454,1777956640000,-3356.395,0.00039876,2]
[421611455,1777956640000,-150.0,0.00039876,2]
[421611449,1777956640000,-522.65230652,0.00039779,31]
[421611445,1777956640000,-287.92499018,0.00039779,31]
[421611453,1777956640000,-624.0,0.00039876,2]
[421611450,1777956640000,-500.0,0.00039779,31]
[421611443,1777956640000,-445.02365592,0.00039779,31]
[421611451,1777956640000,-150.0,0.00039786,7]
[421611447,1777956640000,-500.0,0.00039779,31]
[421611446,1777956640000,-500.0,0.00039779,31]
[421611444,1777956640000,-500.0,0.00039779,31]
[421611442,1777956640000,-626.0,0.00039776,30]
[421611440,1777956640000,-7986.69471343,0.00039776,2]
[421611441,1777956640000,-1203.0,0.00039776,30]
[421611457,1777956640000,-5943.68,0.00039876,2]
[421611448,1777956640000,-558.57572733,0.00039779,31]
[421611458,1777956640000,-150.0,0.00039892,7]
[421611460,1777956640000,-150.0,0.00040051,7]
[421611452,1777956640000,-925.0,0.00039876,2]
[421611472,1777956640000,-150.0,0.00040316,7]
[421611473,1777956640000,-3879.18885623,0.00040467,28]
[421611471,1777956640000,-150.0,0.00040316,7]
[421611467,1777956640000,-500.0,0.00040263,5]
[421611464,1777956640000,-500.0,0.00040263,5]
[421611469,1777956640000,-265.42848326,0.00040263,5]
[421611474,1777956640000,-151.30017191,0.00040537,5]
[421611461,1777956640000,-3879.18885623,0.00040076,28]
[421611466,1777956640000,-500.0,0.00040263,5]
[421611468,1777956640000,-500.0,0.00040263,5]
[421611462,1777956640000,-2616.85509076,0.00040112,15]
[421611463,1777956640000,-1008.5716395,0.00040257,5]
[421611470,1777956640000,-500.0,0.00040263,5]
[421611465,1777956640000,-500.0,0.00040263,5]
[421611459,1777956640000,-500.0,0.00039989,5]
[421611512,1777956641000,-160.0,0.000416,40]
[421611517,1777956641000,-700.0,0.00041795,5]
[421611514,1777956641000,-160.0,0.000416,40]
[421611519,1777956641000,-2000.0,0.000418,2]
[421611518,1777956641000,-202.45373969,0.000418,30]
[421611515,1777956641000,-150.0,0.00041643,30]
[421611513,1777956641000,-160.0,0.000416,40]
[421611510,1777956641000,-160.0,0.000416,40]
[421611522,1777956641000,-200.0,0.00041865,120]
[421611521,1777956641000,-1459.36,0.00041853,120]
[421611516,1777956641000,-179.68,0.00041719,120]
[421611520,1777956641000,-2616.85509076,0.00041842,15]
[421611523,1777956641000,-97070.16209149,0.000419,30]
[421611533,1777956641000,-227.62634141,0.0004203,14]
[421611528,1777956641000,-148904.1412412,0.00041962,2]
[421611527,1777956641000,-6270.5569703,0.00041962,2]
[421611526,1777956641000,-13500.6460183,0.00041962,2]
[421611535,1777956641000,-150.0,0.00042173,30]
[421611536,1777956641000,-55229.46816241,0.0004219,40]
[421611524,1777956641000,-150.0,0.00041908,30]
[421611511,1777956641000,-160.0,0.000416,40]
[421611531,1777956641000,-3004.35326675,0.00041998,5]
[421611534,1777956641000,-134275.4,0.000421,31]
[421611529,1777956641000,-40366.2701402,0.00041962,2]
[421611532,1777956641000,-1795.517954,0.00042,120]
[421611530,1777956641000,-41105.7192614,0.00041962,2]
[421611538,1777956641000,-5000.0,0.0004222,10]
[421611549,1777956641000,-5000.0,0.00042267,60]
[421611525,1777956641000,-5804.778534,0.00041962,2]
[421611509,1777956641000,-160.0,0.000416,40]
[421611498,1777956641000,-197.0,0.00041096,120]
[421611502,1777956641000,-2616.85509076,0.00041266,15]
[421611475,1777956641000,-150.0,0.00040582,7]
[421611476,1777956641000,-160.0,0.000406,35]
[421611479,1777956641000,-160.0,0.000406,35]
[421611480,1777956641000,-160.0,0.000406,35]
[421611481,1777956641000,-160.0,0.000406,35]
[421611477,1777956641000,-160.0,0.000406,35]
[421611478,1777956641000,-160.0,0.000406,35]
[421611482,1777956641000,-160.0,0.000406,35]
[421611483,1777956641000,-160.0,0.000406,35]
[421611485,1777956641000,-387.54,0.000407,120]
[421611488,1777956641000,-1001.67015508,0.0004081,5]
[421611494,1777956641000,-150.0,0.00040847,7]
[421611487,1777956641000,-1003.12334078,0.0004081,5]
[421611484,1777956641000,-2616.85509076,0.00040689,15]
[421611486,1777956641000,-150.0,0.00040741,7]
[421611489,1777956641000,-208.59147841,0.0004081,5]
[421611490,1777956641000,-1003.00953761,0.0004081,5]
[421611492,1777956641000,-1000.0,0.0004081,5]
[421611491,1777956641000,-1003.65183697,0.0004081,5]
[421611495,1777956641000,-39166.0,0.0004095,60]
[421611496,1777956641000,-1343.05582302,0.00041,15]
[421611499,1777956641000,-796.06840668,0.00041097,120]
[421611500,1777956641000,-150.0,0.00041112,30]
[421611501,1777956641000,-681.97176463,0.00041183,2]
[421611504,1777956641000,-227.62634141,0.00041509,13]
[421611505,1777956641000,-150.0,0.0004159,30]
[421611506,1777956641000,-160.0,0.000416,40]
[421611497,1777956641000,-150.0,0.00041024,7]
[421611507,1777956641000,-160.0,0.000416,40]
[421611548,1777956641000,-5000.0,0.00042267,120]
[421611542,1777956641000,-783.0,0.00042261,60]
[421611503,1777956641000,-150.0,0.00041377,30]
[421611537,1777956641000,-5000.0,0.0004219,6]
[421611579,1777956641000,-151.0,0.00042267,60]
[421611575,1777956641000,-151.0,0.00042267,60]
[421611580,1777956641000,-151.0,0.00042267,60]
[421611585,1777956641000,-151.0,0.00042267,60]
[421611583,1777956641000,-151.0,0.00042267,60]
[421611576,1777956641000,-151.0,0.00042267,60]
[421611577,1777956641000,-151.0,0.00042267,60]
[421611578,1777956641000,-151.0,0.00042267,60]
[421611586,1777956641000,-151.0,0.00042267,60]
[421611574,1777956641000,-151.0,0.00042267,60]
[421611581,1777956641000,-151.0,0.00042267,60]
[421611582,1777956641000,-151.0,0.00042267,60]
[421611590,1777956641000,-200.0,0.00042268,7]
[421611588,1777956641000,-158.11199152,0.00042267,60]
[421611591,1777956641000,-500.0,0.00042273,10]
[421611596,1777956641000,-783.0,0.00042273,60]
[421611592,1777956641000,-183.95649119,0.00042273,10]
[421611597,1777956641000,-500.0,0.00042273,120]
[421611589,1777956641000,-200.0,0.00042268,7]
[421611599,1777956641000,-500.0,0.00042273,120]
[421611594,1777956641000,-505.16748051,0.00042273,10]
[421611593,1777956641000,-500.0,0.00042273,10]
[421611595,1777956641000,-500.0,0.00042273,10]
[421611600,1777956641000,-500.0,0.00042273,120]
[421611598,1777956641000,-500.0,0.00042273,120]
[421611601,1777956641000,-500.0,0.00042273,120]
[421611603,1777956641000,-500.0,0.00042273,120]
[421611604,1777956641000,-500.0,0.00042273,120]
[421611539,1777956641000,-237.21858681,0.00042244,2]
[421611587,1777956641000,-151.0,0.00042267,60]
[421611584,1777956641000,-151.0,0.00042267,60]
[421611602,1777956641000,-500.0,0.00042273,120]
[421611570,1777956641000,-1235.18214925,0.00042267,60]
[421611569,1777956641000,-156.90426805,0.00042267,60]
[421611541,1777956641000,-5000.0,0.00042246,30]
[421611543,1777956641000,-391.0,0.00042266,2]
[421611546,1777956641000,-5000.0,0.00042267,2]
[421611544,1777956641000,-200.0,0.00042267,120]
[421611545,1777956641000,-151.88863927,0.00042267,120]
[421611547,1777956641000,-5000.0,0.00042267,7]
[421611551,1777956641000,-500.0,0.00042267,60]
[421611561,1777956641000,-5221.79439176,0.00042267,60]
[421611559,1777956641000,-7407.141672,0.00042267,60]
[421611556,1777956641000,-500.0,0.00042267,60]
[421611550,1777956641000,-6888.0,0.00042267,60]
[421611558,1777956641000,-500.0,0.00042267,60]
[421611553,1777956641000,-151.0,0.00042267,60]
[421611540,1777956641000,-783.0,0.00042244,60]
[421611560,1777956641000,-500.0,0.00042267,60]
[421611554,1777956641000,-7142.856,0.00042267,60]
[421611571,1777956641000,-1280.88388878,0.00042267,60]
[421611568,1777956641000,-1191.11104075,0.00042267,60]
[421611572,1777956641000,-1328.27659266,0.00042267,60]
[421611566,1777956641000,-1148.61238259,0.00042267,60]
[421611573,1777956641000,-1094.53651346,0.00042267,60]
[421611563,1777956641000,-1030.0,0.00042267,60]
[421611567,1777956641000,-151.0,0.00042267,60]
[421611565,1777956641000,-1107.63007,0.00042267,60]
[421611562,1777956641000,-154.18433239,0.00042267,60]
[421611552,1777956641000,-500.0,0.00042267,60]
[421611557,1777956641000,-199.98819264,0.00042267,60]
[421611555,1777956641000,-500.0,0.00042267,60]
[421611564,1777956641000,-1068.11,0.00042267,60]
[421611644,1777956642000,-500.0,0.00042273,120]
[421611645,1777956642000,-500.0,0.00042273,120]
[421611647,1777956642000,-500.0,0.00042273,120]
[421611642,1777956642000,-500.0,0.00042273,120]
[421611653,1777956642000,-500.0,0.00042273,120]
[421611638,1777956642000,-500.0,0.00042273,120]
[421611640,1777956642000,-500.0,0.00042273,120]
[421611651,1777956642000,-500.0,0.00042273,120]
[421611641,1777956642000,-500.0,0.00042273,120]
[421611634,1777956642000,-500.0,0.00042273,120]
[421611630,1777956642000,-500.0,0.00042273,120]
[421611652,1777956642000,-500.0,0.00042273,120]
[421611643,1777956642000,-500.0,0.00042273,120]
[421611657,1777956642000,-500.0,0.00042273,120]
[421611648,1777956642000,-500.0,0.00042273,120]
[421611650,1777956642000,-500.0,0.00042273,120]
[421611646,1777956642000,-500.0,0.00042273,120]
[421611655,1777956642000,-500.0,0.00042273,120]
[421611663,1777956642000,-500.0,0.00042273,120]
[421611656,1777956642000,-500.0,0.00042273,120]